bitfinex/quotes_ETHUSD_20240827
["timestamp","ask_amount","ask_price","bid_price","bid_amount"]
[1724721513974,3.039484,2690.5,2690.0,3.71747]
[1724721515806,2.4253,2690.5,2690.1,3.71731]
[1724721515994,2.4253,2690.5,2690.2,3.71716]
[1724721518307,2.4253,2690.5,2690.0,7.43484]
[1724721518512,2.4253,2690.5,2690.1,3.71731]
[1724721519530,2.4253,2690.5,2690.0,3.71737]
[1724721520116,2.4253,2690.5,2690.0,7.43475]
[1724721520439,2.4253,2690.5,2690.1,3.71728]
[1724721520812,2.4253,2690.5,2690.0,4.460845]
[1724721521325,2.4253,2690.5,2690.0,8.178215]
[1724721521650,2.4253,2690.5,2690.2,3.71714]
[1724721521854,3.71598,2691.1,2690.1,3.73229066]
[1724721521855,2.3102,2691.1,2690.1,3.73229066]
[1724721522057,2.3102,2691.1,2690.2,1.05166957]
[1724721522257,2.3102,2691.1,2690.4,3.71682]
[1724721522543,2.3102,2691.1,2690.5,3.71668]
[1724721523234,2.3102,2691.1,2690.6,3.71662]
[1724721524711,2.3102,2691.1,2690.6,3.71656]
[1724721525012,2.3102,2691.3,2690.9,3.7161]
[1724721525216,2.3102,2691.3,2690.9,3.7904164]
[1724721525576,2.3102,2691.3,2691.0,3.71608]
[1724721525856,2.3102,2691.3,2690.8,3.71624]
[1724721531113,2.3102,2691.3,2690.8,7.4325]
[1724721531353,2.3102,2691.3,2690.9,3.71621]
[1724721534325,2.3102,2691.3,2690.9,3.71616]
[1724721534525,2.3102,2691.6,2691.1,3.71585]
[1724721534766,2.3102,2691.6,2691.1,7.4317]
[1724721535133,2.3102,2691.6,2691.1,3.71585]
[1724721535369,4.01396807,2691.6,2691.1,3.71585]
[1724721535680,2.3102,2691.6,2691.3,3.71558]
[1724721536544,2.3102,2691.6,2691.4,3.71545]
[1724721536939,2.3102,2691.6,2691.3,3.71558]
[1724721540299,2.3102,2691.6,2691.1,3.71588]
[1724721540597,2.3102,2691.6,2691.1,3.71587]
[1724721541556,2.3102,2691.6,2690.8,3.04385771]
[1724721541557,2.3102,2691.6,2691.3,3.71558]
[1724721541761,2.3102,2691.6,2691.3,7.43116]
[1724721541979,2.3022,2691.9,2691.4,3.71544]
[1724721542184,2.3022,2691.9,2691.3,0.743116]
[1724721542375,3.83236772,2693.1,2692.0,3.71469]
[1724721542376,2.3022,2692.3,2692.0,3.71469]
[1724721543793,2.3022,2692.3,2691.8,3.71495]
[1724721544300,2.3022,2691.8,2690.7,0.9654846]
[1724721544457,2.3022,2691.8,2688.3,0.7797731]
[1724721544458,0.75,2689.8,2688.3,0.7797731]
[1724721544657,5.50573815,2691.3,2688.4,0.58243403]
[1724721544658,0.07993526,2689.5,2688.4,0.58243403]
[1724721544859,0.75,2690.1,2687.0,2.2575]
[1724721544860,3.71972,2688.4,2687.0,2.2575]
[1724721545107,3.71842,2689.4,2687.1,0.597923]
[1724721545108,3.71899,2689.0,2687.1,0.597923]
[1724721545269,3.71899,2689.0,2688.1,3.73229066]
[1724721545475,3.71848,2689.3,2688.1,3.73229066]
[1724721545669,1.54813114,2689.6,2688.3,3.71979]
[1724721545992,1.54813114,2689.6,2687.9,2.2575]
[1724721545993,3.71848,2689.3,2688.0,4.97906382]
[1724721546193,3.71848,2689.3,2688.1,0.72365638]
[1724721546785,3.71863,2689.2,2688.1,4.94011489]
[1724721547097,3.71863,2689.2,2688.1,1.22002489]
[1724721547472,3.71863,2689.2,2688.2,0.49636851]
[1724721547689,3.71831,2689.4,2688.4,4.97906382]
[1724721547889,3.71818,2689.5,2688.5,0.86988438]
[1724721548084,3.85033114,2689.8,2688.5,0.86988438]
[1724721548085,3.71831,2689.4,2688.5,0.86988438]
[1724721548287,3.7183,2689.4,2688.5,0.86988438]
[1724721548695,2.3022,2689.8,2688.5,0.86988438]
[1724721548696,3.71829,2689.5,2688.5,0.86988438]
[1724721548996,3.71854,2689.3,2688.5,0.86988438]
[1724721549203,3.7186,2689.2,2688.6,0.58489482]
[1724721550200,3.71887,2689.0,2688.6,0.58489482]
[1724721550398,3.71875,2689.1,2688.6,0.58489482]
[1724721551267,3.71886,2689.0,2688.6,0.58489482]
[1724721552204,3.71886,2689.0,2688.7,4.97906382]
[1724721552984,3.71886,2689.0,2688.7,5.53545968]
[1724721563021,3.71886,2689.0,2688.7,4.97906382]
[1724721563184,3.71951,2688.6,2687.9,7.23656382]
[1724721563587,10.99878,2689.1,2687.9,7.23656382]
[1724721563588,3.71969,2688.4,2687.9,7.23656382]
[1724721563821,3.71969,2688.4,2687.6,8.69982382]
[1724721564006,3.71996,2688.2,2687.7,1.10624238]
[1724721564794,3.71903,2688.9,2688.2,3.71986]
[1724721564994,3.71895,2689.0,2688.3,8.69888382]
[1724721565216,3.71895,2689.0,2688.3,4.97906382]
[1724721565217,3.71899,2688.9,2688.3,4.97906382]
[1724721565417,3.71895,2689.0,2688.4,1.10615238]
[1724721565584,3.71914,2688.8,2688.4,1.10615238]
[1724721566696,3.71914,2688.8,2688.3,4.97906382]
[1724721566929,3.71941,2688.6,2688.3,4.97906382]
[1724721567134,3.71941,2688.6,2688.2,2.3626]
[1724721567427,3.71941,2688.6,2688.0,4.97906382]
[1724721567428,7.43893,2688.6,2688.0,4.97906382]
[1724721567932,3.71941,2688.6,2688.0,4.97906382]
[1724721568239,3.71918,2688.8,2688.2,3.73498193]
[1724721568565,3.71935,2688.7,2688.2,3.73498193]
[1724721569504,3.71918,2688.8,2688.2,3.73498193]
[1724721570142,7.28,2689.1,2688.2,3.73498193]
[1724721570143,3.71908,2688.9,2688.2,3.73498193]
[1724721570327,3.71925,2688.8,2688.2,3.73498193]
[1724721571439,3.71925,2688.8,2688.2,4.59747366]
[1724721571749,7.28,2689.1,2688.6,3.71939]
[1724721572050,7.28,2689.1,2688.5,3.73498193]
[1724721572051,3.7188,2689.1,2688.5,3.73498193]
[1724721572246,3.71888,2689.0,2688.5,3.73498193]
[1724721576750,3.71888,2689.0,2688.4,3.71957]
[1724721577064,3.71888,2689.0,2688.4,4.25497429]
[1724721577532,3.7188,2689.1,2688.4,4.25497429]
[1724721578232,3.71893,2689.0,2688.4,4.25497429]
[1724721578760,3.71899,2688.9,2688.4,4.25497429]
[1724721581350,3.71893,2689.0,2688.4,6.59817429]
[1724721581741,3.719,2688.9,2688.4,2.87860429]
[1724721582685,3.719,2688.9,2688.4,2.3432]
[1724721582686,3.71914,2688.8,2688.4,2.3432]
[1724721582974,3.71935,2688.7,2688.1,3.72008]
[1724721583275,3.7194,2688.6,2688.0,2.3432]
[1724721583481,3.71992,2688.3,2687.6,2.3432]
[1724721583679,7.45377193,2689.1,2687.6,2.3432]
[1724721583680,3.72021,2688.1,2687.6,2.3432]
[1724721584180,3.72018,2688.1,2687.6,2.3432]
[1724721584510,3.72025,2688.0,2687.4,3.72095]
[1724721584638,3.72018,2688.1,2687.4,5.07299019]
[1724721585073,3.72018,2688.1,2687.5,3.72092]
[1724721587769,3.72018,2688.1,2687.5,3.72083]
[1724721588279,7.44037,2688.1,2687.5,3.72083]
[1724721588784,3.72018,2688.1,2687.5,3.72083]
[1724721588981,3.71988,2688.3,2687.7,3.72055]
[1724721589477,3.71988,2688.3,2687.5,5.20806921]
[1724721589478,0.34809917,2688.2,2687.5,5.20802921]
[1724721589668,3.71998,2688.2,2687.6,3.72078]
[1724721590248,0.90502997,2688.1,2687.6,3.72078]
[1724721590468,0.34808845,2688.0,2687.7,3.72054]
[1724721590656,0.34810462,2687.9,2687.8,0.74555219]
[1724721592189,3.71979,2688.4,2687.8,0.74555219]
[1724721592190,5.26792114,2688.4,2687.8,0.74555219]
[1724721592497,3.71979,2688.4,2687.8,0.74555219]
[1724721592870,0.90506672,2688.3,2687.8,0.74555219]
[1724721593068,0.90506672,2688.2,2687.8,0.74555219]
[1724721593264,0.34810258,2688.1,2687.8,0.74555219]
[1724721593596,0.34810258,2688.0,2687.8,0.74555219]
[1724721593761,3.71979,2688.4,2687.8,0.74555219]
[1724721594092,0.90506544,2688.3,2687.7,3.72054]
[1724721594283,0.90506544,2688.2,2687.7,7.44111]
[1724721594463,0.34810209,2688.1,2687.7,3.72054]
[1724721594663,3.71979,2688.4,2687.7,3.72054]
[1724721594664,0.34810209,2688.0,2687.7,3.72054]
[1724721594881,3.71979,2688.4,2687.7,3.72054]
[1724721595090,0.90505959,2688.3,2687.7,4.46609219]
[1724721595288,0.90505959,2688.2,2687.7,4.46609219]
[1724721595489,0.90507157,2688.2,2687.7,4.46609219]
[1724721595694,0.34810445,2688.1,2687.7,4.46609219]
[1724721595891,0.34810445,2688.0,2687.8,3.72047]
[1724721596098,5.26792114,2688.4,2687.8,4.91262441]
[1724721596261,0.90495041,2688.3,2687.8,4.91262441]
[1724721596601,0.90495041,2688.2,2687.8,4.91262441]
[1724721596767,0.34805785,2688.1,2688.0,3.72023]
[1724721596969,2.32921551,2688.8,2688.3,3.71982]
[1724721596970,1.54813114,2688.8,2688.3,3.71982]
[1724721597184,0.90519183,2688.7,2688.5,3.71953]
[1724721597495,5.26692114,2689.1,2688.5,7.45451193]
[1724721597672,0.90527068,2689.0,2688.6,3.71939]
[1724721597872,5.26674114,2689.2,2688.6,3.71939]
[1724721597873,0.34818103,2688.9,2688.6,3.71939]
[1724721598095,5.26674114,2689.2,2688.6,3.71939]
[1724721598096,0.34818103,2688.8,2688.7,3.71926]
[1724721598297,1.54813114,2689.2,2688.7,3.71926]
[1724721598594,0.55711647,2689.1,2688.7,3.71926]
[1724721598794,0.90531426,2689.1,2688.7,3.71926]
[1724721598964,0.90530756,2689.0,2688.6,1.02441539]
[1724721599163,0.34819779,2688.9,2688.6,4.74381539]
[1724721599520,1.54813114,2689.1,2688.6,4.74381539]
[1724721599654,0.34816128,2689.0,2688.6,4.74381539]
[1724721599996,0.34816128,2688.9,2688.6,4.74381539]
[1724721600196,1.54813114,2689.2,2688.6,4.74381539]
[1724721600397,0.90523852,2689.1,2688.9,3.71897]
[1724721600595,0.34816866,2689.0,2688.9,3.71897]
[1724721600799,1.54813114,2689.4,2688.9,6.15278193]
[1724721601001,8.82813114,2689.6,2689.3,3.71843]
[1724721601165,7.28,2689.6,2689.3,3.71843]
[1724721601600,0.9057959,2689.5,2689.3,3.71843]
[1724721601798,0.34841153,2689.4,2689.3,3.71843]
[1724721601986,0.9057959,2689.5,2689.3,3.71843]
[1724721601987,0.9057959,2689.5,2689.4,3.7183]
[1724721602298,0.9057959,2689.5,2689.4,7.4366]
[1724721604616,0.9057959,2689.5,2689.4,3.7183]
[1724721605587,0.9057959,2689.5,2689.4,7.4366]
[1724721605789,0.9057959,2689.5,2689.4,5.15177231]
[1724721606619,0.9057959,2689.5,2689.4,8.87007231]
[1724721609696,3.71694,2690.4,2689.7,3.71784]
[1724721610012,0.3484676,2690.3,2689.7,3.71784]
[1724721610322,3.71694,2690.4,2688.8,2.4178]
[1724721610323,3.71822,2689.5,2688.8,2.4178]
[1724721610526,2.3341,2689.9,2688.8,6.13681]
[1724721610527,3.71793,2689.7,2688.8,6.13681]
[1724721610907,3.71845,2689.3,2688.8,2.4178]
[1724721611106,3.73498193,2689.7,2688.4,3.71966]
[1724721611107,3.71875,2689.1,2688.4,3.71966]
[1724721611307,0.371875,2689.1,2688.4,3.71966]
[1724721611643,0.371875,2689.1,2688.0,3.72018]
[1724721611644,3.73498193,2689.1,2688.0,3.72018]
[1724721612221,0.34833258,2689.0,2688.0,3.72018]
[1724721612407,3.73498193,2689.1,2688.0,3.72018]
[1724721612602,3.73498193,2689.1,2687.9,2.4553]
[1724721612603,3.71956,2688.5,2687.9,2.4553]
[1724721613118,3.71969,2688.4,2687.6,3.72074]
[1724721613310,4.091659,2688.4,2687.7,3.72064]
[1724721614204,4.091659,2688.4,2687.5,6.17621]
[1724721614431,4.091659,2688.4,2687.6,3.0]
[1724721615712,0.371969,2688.4,2687.7,3.72064]
[1724721618215,0.371969,2688.4,2687.8,3.7205]
[1724721618726,7.28,2688.6,2687.8,3.7205]
[1724721618927,7.28,2688.6,2688.2,3.71992]
[1724721619428,7.28,2688.6,2688.0,3.72012]
[1724721620644,7.28,2688.6,2688.0,3.72011]
[1724721621157,7.28,2688.6,2688.1,3.72008]
[1724721622423,2.2995,2689.1,2687.4,0.46470184]
[1724721622619,3.71932,2688.7,2687.5,2.4553]
[1724721622957,3.71968,2688.4,2687.8,3.72051]
[1724721623516,1.54813114,2688.9,2688.1,2.4553]
[1724721623721,7.28,2689.4,2688.2,0.743783]
[1724721623722,7.56600114,2689.4,2688.2,0.743783]
[1724721623976,7.56600114,2689.4,2688.7,3.71918]
[1724721623977,3.71837,2689.4,2688.7,3.71918]
[1724721624175,3.71852,2689.3,2688.7,3.71918]
[1724721624657,3.71852,2689.3,2688.5,3.71948]
[1724721624658,3.71852,2689.3,2688.6,3.7194]
[1724721624860,3.71837,2689.4,2688.7,3.71926]
[1724721625018,4.61682511,2689.4,2688.7,3.71926]
[1724721625558,3.71816,2689.5,2688.9,3.71894]
[1724721625760,3.71805,2689.6,2688.9,3.71894]
[1724721625970,3.71805,2689.6,2688.8,2.4553]
[1724721625971,3.7178,2689.8,2689.1,3.71861]
[1724721626563,3.7178,2689.8,2689.2,3.71857]
[1724721626780,11.28307114,2690.2,2689.4,6.13409]
[1724721627077,0.371694,2690.3,2689.5,3.71805]
[1724721627222,6.01729,2690.5,2689.7,7.43554]
[1724721627424,3.71653,2690.7,2689.9,3.71747]
[1724721627656,3.71628,2690.9,2690.2,3.71717]
[1724721627982,0.34857048,2690.8,2690.2,0.07433606]
[1724721628260,5.26412114,2691.1,2690.1,3.71733]
[1724721628261,3.71599,2691.1,2690.1,3.71733]
[1724721628471,4.087719,2691.0,2690.2,3.71711]
[1724721629049,3.71623,2690.9,2690.2,3.71711]
[1724721630184,0.371599,2691.0,2690.1,4.330643]
[1724721630364,0.371599,2691.0,2688.6,0.05]
[1724721630365,3.71636,2690.8,2689.9,3.71759]
[1724721630536,3.71674,2690.6,2689.9,3.71759]
[1724721632040,3.71674,2690.6,2690.0,0.05566012]
[1724721633254,0.371636,2690.7,2690.0,0.05566012]
[1724721633453,7.28,2690.9,2690.0,0.05566012]
[1724721633663,7.28,2690.9,2690.3,3.71704]
[1724721633664,10.99623,2690.9,2690.3,3.71704]
[1724721634474,7.28,2690.9,2690.4,0.04978336]
[1724721634780,10.99626,2690.9,2690.4,0.04978336]
[1724721635244,10.99626,2690.9,2690.2,3.71719]
[1724721635444,10.99626,2690.9,2690.5,0.04858542]
[1724721635645,12.5046569,2690.9,2690.5,0.04858542]
[1724721635962,12.5046569,2690.9,2690.2,3.71719]
[1724721636167,12.5046569,2690.9,2690.6,0.04853583]
[1724721636365,12.5046569,2690.9,2690.1,6.13312]
[1724721636366,7.28,2690.9,2690.5,3.71676]
[1724721636563,7.28,2690.9,2690.7,0.04853583]
[1724721636769,3.0,2691.5,2690.6,0.04854292]
[1724721636770,3.71543,2691.5,2690.6,0.04854292]
[1724721636974,3.71543,2691.5,2690.3,4.98253003]
[1724721636975,3.71543,2691.5,2690.9,3.71622]
[1724721637167,0.371543,2691.4,2690.9,3.71622]
[1724721637373,0.371543,2691.4,2691.0,0.04852875]
[1724721637670,10.99516,2691.7,2691.1,0.04852875]
[1724721637844,14.6504,2692.1,2691.4,3.71551]
[1724721637845,7.28,2692.0,2691.4,3.71551]
[1724721638042,7.28,2692.0,2691.3,3.71555]
[1724721638279,10.99473,2692.0,2691.5,0.0480755]
[1724721638488,12.465666,2692.0,2691.3,3.71555]
[1724721638658,12.465666,2692.0,2691.6,0.0480755]
[1724721638859,12.465666,2692.0,2691.3,3.71555]
[1724721639066,12.465666,2692.0,2691.7,0.0480755]
[1724721639248,12.465666,2692.0,2691.3,3.71555]
[1724721639450,12.465666,2692.0,2691.8,0.0480755]
[1724721639674,12.465666,2692.0,2691.3,3.71555]
[1724721639860,12.465666,2692.0,2691.9,0.0480755]
[1724721640061,12.465666,2692.0,2691.3,3.71555]
[1724721640261,12.465666,2692.0,2691.9,0.04754461]
[1724721640587,12.465666,2692.0,2691.3,3.71555]
[1724721640988,12.465666,2692.0,2691.4,0.04757999]
[1724721641998,4.36719506,2691.9,2691.4,0.04757999]
[1724721642381,4.36719506,2691.9,2691.3,3.71565]
[1724721642555,7.28,2692.0,2691.5,0.04591615]
[1724721642757,7.28,2692.0,2691.4,3.71552]
[1724721643325,10.99473,2692.0,2691.5,0.04595861]
[1724721643623,3.7149,2691.9,2691.5,0.04595861]
[1724721643769,3.71507,2691.8,2691.5,0.04595861]
[1724721643969,1.470997,2691.8,2691.2,3.71572]
[1724721644185,3.7149,2691.9,2691.6,0.04442666]
[1724721644358,7.28,2692.0,2691.6,3.71526]
[1724721644698,7.28,2692.0,2691.7,0.04442666]
[1724721645055,7.28,2692.0,2691.5,3.7154]
[1724721645255,7.28,2692.0,2691.8,0.04191054]
[1724721645555,7.28,2692.0,2691.5,3.7154]
[1724721645757,7.28,2692.0,2691.9,0.04191054]
[1724721646285,7.28,2692.0,2691.4,3.71543]
[1724721646478,7.28,2692.0,2691.9,0.04191054]
[1724721646671,7.28,2692.0,2691.4,7.43087]
[1724721646872,7.28,2692.0,2691.9,0.04191054]
[1724721647102,7.28,2692.0,2691.5,3.71536]
[1724721647288,7.28,2692.0,2691.9,0.04191054]
[1724721647456,7.28,2692.0,2691.6,3.71522]
[1724721647657,7.28,2692.0,2691.9,0.04191054]
[1724721647907,6.01448,2692.5,2691.6,6.890525]
[1724721648069,3.71408,2692.5,2691.9,0.04191054]
[1724721648269,7.42822,2692.5,2691.8,3.71496]
[1724721648500,3.71425,2692.4,2692.0,0.03885927]
[1724721648709,3.71425,2692.4,2691.8,3.71496]
[1724721648864,3.71425,2692.4,2692.1,0.03885927]
[1724721649069,3.71425,2692.4,2691.6,6.890525]
[1724721649070,3.7143,2692.3,2691.6,6.890525]
[1724721649273,3.7143,2692.3,2691.6,4.458225]
[1724721649698,3.7143,2692.3,2691.7,0.03885927]
[1724721651061,3.7143,2692.3,2691.7,3.75388927]
[1724721651674,3.71408,2692.5,2691.9,2.4323]
[1724721651875,5.184869,2692.5,2691.8,3.71496]
[1724721652075,5.184869,2692.5,2692.0,0.03885927]
[1724721652277,5.184869,2692.5,2691.8,3.71496]
[1724721652497,3.71431,2692.3,2692.1,0.03885927]
[1724721652662,3.71431,2692.3,2691.6,7.43032]
[1724721652869,3.71431,2692.3,2692.2,0.03885927]
[1724721653064,3.71431,2692.3,2691.7,3.71504]
[1724721653264,3.71431,2692.3,2691.6,4.23857614]
[1724721653265,3.71408,2692.5,2692.2,0.03885927]
[1724721653489,3.71408,2692.5,2691.8,3.78916864]
[1724721653666,3.71408,2692.5,2692.3,0.03885927]
[1724721653866,7.42821,2692.5,2691.9,3.71483]
[1724721654167,3.71408,2692.5,2692.4,0.03885927]
[1724721654373,3.71416,2692.4,2691.7,3.715]
[1724721654923,3.71416,2692.4,2691.6,4.23861614]
[1724721654924,3.71432,2692.3,2691.8,0.03885927]
[1724721655119,3.71432,2692.3,2691.6,4.23858614]
[1724721655275,3.71432,2692.3,2691.9,0.03885927]
[1724721655479,3.71432,2692.3,2691.7,3.71502]
[1724721655816,3.71432,2692.3,2692.0,0.03880981]
[1724721656102,4.5670998,2692.3,2692.1,0.03880981]
[1724721656269,4.5670998,2692.3,2691.7,3.71502]
[1724721656465,5.97342,2692.3,2692.2,0.03880981]
[1724721656670,3.71451,2692.2,2691.5,3.71531]
[1724721656879,3.71412,2692.5,2692.2,0.03881688]
[1724721657078,3.71412,2692.5,2691.8,3.7149]
[1724721657407,3.7141,2692.5,2692.3,0.03881688]
[1724721657606,3.7141,2692.5,2691.8,3.7149]
[1724721657766,3.7141,2692.5,2691.8,4.32406]
[1724721657965,3.71418,2692.4,2691.9,0.03881688]
[1724721658708,3.7141,2692.5,2691.9,0.03881688]
[1724721658924,3.7141,2692.5,2691.9,3.75365688]
[1724721660011,3.7141,2692.5,2691.9,0.03881688]
[1724721660710,3.7141,2692.5,2691.9,4.73809857]
[1724721661673,3.71415,2692.4,2691.9,1.02334857]
[1724721661885,3.7141,2692.5,2691.9,1.02334857]
[1724721662811,7.28,2692.6,2691.9,0.03881688]
[1724721662972,3.71438,2692.3,2691.9,0.03881688]
[1724721663278,3.71438,2692.3,2692.0,0.03867559]
[1724721663485,3.71408,2692.5,2691.8,3.71494]
[1724721663681,3.71408,2692.5,2692.1,0.03867559]
[1724721663903,3.71408,2692.5,2691.9,6.09145]
[1724721664096,3.71408,2692.5,2692.2,0.03871091]
[1724721664296,7.28,2692.6,2692.0,3.71469]
[1724721664500,7.28,2692.6,2692.3,0.03871091]
[1724721664716,7.28,2692.6,2692.0,3.71469]
[1724721664874,10.99389,2692.6,2692.4,0.03871091]
[1724721665069,10.99389,2692.6,2692.0,3.71469]
[1724721665317,10.99389,2692.6,2692.5,0.03871091]
[1724721665499,10.99389,2692.6,2692.0,4.7933834]
[1724721665823,3.71424,2692.4,2691.9,2.3767]
[1724721666116,3.71424,2692.4,2691.8,3.71486]
[1724721666316,3.71432,2692.3,2691.6,6.09188]
[1724721666495,3.71432,2692.3,2691.7,0.609188]
[1724721667315,3.71432,2692.3,2691.6,2.3767]
[1724721667316,3.7146,2692.1,2691.6,2.3767]
[1724721667671,3.71432,2692.3,2691.7,3.71511]
[1724721668713,3.71432,2692.3,2691.6,6.09195]
[1724721669086,3.71409,2692.5,2691.7,3.71503]
[1724721669290,3.71417,2692.4,2691.7,4.624203]
[1724721669870,3.71409,2692.5,2691.7,4.624203]
[1724721669871,3.71429,2692.3,2691.7,4.624203]
[1724721670075,3.71429,2692.3,2691.7,7.43006]
[1724721670272,3.71408,2692.5,2691.6,6.09189]
[1724721670515,7.28,2692.6,2692.0,3.71466]
[1724721670708,3.71402,2692.5,2692.0,3.71466]
[1724721671093,3.71423,2692.4,2691.8,3.71487]
[1724721671502,3.71423,2692.4,2691.7,3.7151]
[1724721671503,3.71429,2692.3,2691.7,3.7151]
[1724721671899,3.71429,2692.3,2691.6,6.09183]
[1724721671900,3.71429,2692.3,2691.6,3.71513]
[1724721672228,3.71455,2692.2,2691.6,3.71513]
[1724721672430,3.7146,2692.1,2691.6,3.71513]
[1724721673187,3.7146,2692.1,2691.3,2.3293]
[1724721673388,3.841125,2692.4,2691.3,2.3293]
[1724721673389,0.3483004,2692.0,2691.3,2.3293]
[1724721673628,3.71435,2692.3,2691.6,3.71517]
[1724721673925,0.34830153,2692.2,2691.6,3.71517]
[1724721674082,0.34830153,2692.1,2691.6,3.71517]
[1724721674288,0.34830153,2692.0,2691.7,3.71507]
[1724721674486,3.71406,2692.5,2691.8,6.04422]
[1724721674696,3.71406,2692.5,2691.6,7.43034]
[1724721674697,3.7143,2692.3,2691.6,7.43034]
[1724721674889,4.06285249,2692.2,2691.6,3.71517]
[1724721675121,4.06285249,2692.2,2691.4,3.71542]
[1724721675122,4.06288249,2692.1,2691.4,3.71542]
[1724721675302,0.34830249,2692.0,2691.4,3.71541]
[1724721675624,3.71458,2692.1,2691.5,0.371541]
[1724721675824,0.34828463,2692.0,2691.5,0.371541]
[1724721676040,3.71458,2692.1,2691.5,0.371541]
[1724721676194,3.71458,2692.1,2691.5,4.086851]
[1724721676195,0.348278,2692.0,2691.5,4.086851]
[1724721676395,3.71458,2692.1,2691.6,0.03747001]
[1724721676602,6.08464,2692.3,2691.6,3.75264001]
[1724721676603,0.34827079,2692.0,2691.6,3.75264001]
[1724721676893,12.55426529,2692.6,2691.6,3.75264001]
[1724721676894,8.82813114,2692.6,2691.8,2.3293]
[1724721677203,8.82813114,2692.6,2691.7,0.03754066]
[1724721677204,3.7144,2692.3,2691.7,0.03754066]
[1724721677410,0.34828203,2692.2,2691.6,3.71519]
[1724721677614,7.4288,2692.3,2691.8,0.03629119]
[1724721677801,4.61209311,2692.3,2691.6,3.71519]
[1724721678000,4.61209311,2692.3,2691.9,0.03629119]
[1724721678212,4.61209311,2692.3,2691.5,2.3293]
[1724721678419,8.53052425,2692.3,2692.0,0.03629119]
[1724721678622,8.53052425,2692.3,2691.5,2.3293]
[1724721678823,8.53052425,2692.3,2691.5,2.933773]
[1724721679012,6.98239311,2692.3,2691.6,0.03625586]
[1724721679208,1.54813114,2692.2,2691.6,3.75148586]
[1724721679410,8.97692114,2692.3,2691.6,3.75148586]
[1724721679603,1.54813114,2692.2,2691.6,3.75148586]
[1724721680017,3.71458,2692.1,2691.6,0.03625586]
[1724721680214,5.26271114,2692.1,2691.6,0.03625586]
[1724721680398,3.71482,2692.0,2691.6,0.03625586]
[1724721680606,5.26295114,2692.0,2691.6,0.03625586]
[1724721681246,5.26298114,2691.9,2691.6,0.03625586]
[1724721681428,1.54813114,2691.9,2691.6,0.03625586]
[1724721681601,1.54813114,2691.9,2691.4,3.71541]
[1724721681797,1.54813114,2691.9,2691.7,0.03508289]
[1724721682040,1.54813114,2691.9,2691.5,0.371541]
[1724721682243,7.42929,2692.1,2691.5,0.371541]
[1724721682244,6.04431432,2692.1,2691.8,0.03508289]
[1724721682407,1.94444979,2691.9,2691.5,4.086901]
[1724721682738,1.55553791,2691.8,2691.5,4.086901]
[1724721682936,1.55553791,2691.8,2691.6,0.7802311]
[1724721683305,1.55553791,2691.8,2691.7,6.04442]
[1724721683641,1.55553791,2692.2,2692.1,3.71457]
[1724721684639,1.94552713,2692.3,2692.0,3.71466]
[1724721684803,1.55639729,2692.1,2692.0,3.71466]
[1724721685137,1.55639729,2692.1,2692.0,4.690548]
[1724721685340,1.55639729,2692.1,2692.0,0.975888]
[1724721686099,1.55639729,2692.1,2692.0,4.690598]
[1724721686310,1.55639729,2692.2,2692.1,3.71457]
[1724721686804,1.55647191,2692.2,2692.1,3.71457]
[1724721687241,1.5564788,2692.2,2692.1,4.7880298]
[1724721690109,1.5564788,2692.3,2692.2,3.71443]
[1724721690442,1.5564788,2692.4,2692.2,3.71443]
[1724721691218,1.5564788,2692.4,2692.3,6.18609]
[1724721691419,1.5564788,2692.7,2692.6,3.71388]
[1724721691612,1.94552764,2692.8,2692.4,3.71415]
[1724721691813,1.55639317,2692.7,2692.4,3.71415]
[1724721692044,1.55639317,2692.7,2692.5,0.03526659]
[1724721692548,1.94552764,2692.6,2692.5,0.03526659]
[1724721692711,1.94552764,2692.6,2692.3,2.4718]
[1724721692908,1.55584165,2692.5,2692.3,2.4718]
[1724721693144,1.55584165,2692.7,2692.4,3.71415]
[1724721693330,1.55584165,2692.7,2692.5,4.332475]
[1724721694440,1.55584165,2692.6,2692.5,3.71388]
[1724721695550,1.55584165,2692.7,2692.5,3.71388]
[1724721696422,1.55584165,2692.8,2692.6,3.71387]
[1724721696837,1.55584165,2692.7,2692.4,3.71407]
[1724721697049,1.55584165,2692.6,2692.4,3.71407]
[1724721697263,1.55584165,2692.7,2692.4,4.704078]
[1724721697615,1.55584165,2692.6,2692.4,4.704078]
[1724721697953,1.55584165,2692.7,2692.4,4.704078]
[1724721698817,1.55584165,2692.8,2692.4,4.704078]
[1724721699117,1.55584165,2692.8,2692.5,0.7175878]
[1724721699434,1.55584165,2692.8,2692.5,4.4315878]
[1724721699856,1.55584165,2692.8,2692.6,3.71384]
[1724721700836,1.55584165,2692.7,2692.4,3.71402]
[1724721701052,1.55584165,2692.6,2692.3,2.4718]
[1724721702466,1.55584165,2692.7,2692.5,3.71402]
[1724721702838,1.55584165,2692.7,2692.3,7.176018]
[1724721703047,1.55584165,2692.7,2692.3,10.890228]
[1724721703424,1.55584165,2692.7,2692.3,7.176018]
[1724721703633,1.55584165,2692.5,2692.0,2.3978]
[1724721704144,1.55584165,2692.4,2692.1,3.71457]
[1724721704472,1.55584165,2692.5,2692.1,3.71457]
[1724721704696,1.55584165,2692.5,2692.1,7.42905]
[1724721704968,1.55584165,2692.5,2692.1,3.71448]
[1724721709355,1.55584165,2692.6,2692.1,4.697186]
[1724721709774,1.55584165,2692.6,2692.3,3.71419]
[1724721710849,1.9421084,2692.7,2692.3,3.71419]
[1724721710850,1.55584165,2692.5,2692.3,3.71419]
[1724721711174,1.55584165,2692.6,2692.3,3.71419]
[1724721711956,1.55584165,2692.6,2692.1,8.411716]
[1724721712379,1.55584165,2692.5,2692.1,3.71448]
[1724721712684,1.55584165,2692.6,2692.1,3.71448]
[1724721712977,1.55584165,2692.5,2692.1,3.71448]
[1724721713699,1.55584165,2692.7,2692.2,3.71435]
[1724721713903,1.55584165,2692.7,2692.2,4.697013]
[1724721714445,1.55584165,2692.7,2692.4,2.3978]